fUSD/lending_fUSD_20240204
["ID","MTS","AMOUNT","RATE_DAILY","PERIOD"]
[313248931,1707014459735,165.32,0.00021924,2]
[313248932,1707014471192,2510.64407049,0.0002,2]
[313248933,1707014489193,486.70835154,0.0002,2]
[313248934,1707014520944,500.0,0.00022,2]
[313248935,1707014561244,190.69,0.00021903,2]
[313248936,1707014569161,150.0,0.00021918,2]
[313248937,1707014569181,40.98,0.00021918,2]
[313248938,1707014660931,500.0,0.00021903,2]
[313248939,1707014680136,840.0,0.00021892,2]
[313248940,1707014763096,150.0,0.00019979,2]
[313248941,1707014763118,8.28,0.00019979,2]
[313248942,1707014823521,2000.0,0.00021941,2]
[313248943,1707014837357,150.0,0.00022312,2]
[313248944,1707014837377,52.06,0.00022312,2]
[313248945,1707014837550,97.94,0.00022373,2]
[313248946,1707014837570,104.12,0.00022373,2]
[313248947,1707014837781,45.88,0.00022434,2]
[313248948,1707014837802,150.0,0.00022434,2]
[313248949,1707014837823,6.18,0.00022434,2]
[313248950,1707014838015,143.82,0.00022495,2]
[313248951,1707014838041,58.24,0.00022495,2]
[313248952,1707014859354,150.0,0.00021938,2]
[313248953,1707014859377,169.17506135,0.00021938,2]
[313248954,1707014859397,3393.76493865,0.00021938,2]
[313248955,1707014859617,250.0,0.00022,2]
[313248956,1707014860886,251.55113401,0.00022274,2]
[313248957,1707014898207,163.35,0.00021881,2]
[313248959,1707015014391,151.26879161,0.00022,2]
[313248965,1707015031689,-203.39653031,0.00022508,2]
[313248966,1707015031700,-302.34593414,0.00022509,2]
[313248967,1707015031711,-282.2173832,0.0002251,2]
[313248968,1707015031720,-261.10265285,0.00022511,2]
[313248969,1707015031731,-172.02314401,0.00022512,2]
[313248970,1707015031741,-202.06,0.00022556,2]
[313248971,1707015031750,-202.06,0.00022617,2]
[313248972,1707015031759,-157.90239671,0.00022649,2]
[313248973,1707015031769,-137.57739181,0.00022679,2]
[313248974,1707015031782,-64.48260819,0.00022679,2]
[313248975,1707015031791,-157.90239666,0.00022685,2]
[313248976,1707015031800,-157.90239666,0.00022721,2]
[313248977,1707015031809,-202.06,0.0002274,2]
[313248978,1707015031818,-150.0,0.00022747,2]
[313248979,1707015031828,-1515.21504298,0.00022748,2]
[313248980,1707015031841,-1026.39824093,0.00022748,2]
[313248981,1707015031852,-4099.00772528,0.00022748,2]
[313248982,1707015031864,-1122.1684524,0.00022748,2]
[313248983,1707015031876,-844.99739025,0.00022748,2]
[313248986,1707015031894,-6938.26852002,0.00022748,2]
[313248988,1707015031905,-376.86,0.00022748,2]
[313248990,1707015031920,-504.021,0.00022748,2]
[313248993,1707015031932,-1531.9762125,0.00022748,2]
[313248995,1707015031943,-1105.94669138,0.00022748,2]
[313248998,1707015031953,-4000.0,0.00022749,2]
[313249001,1707015031962,-157.90239666,0.00022757,2]
[313249004,1707015031971,-10583.33482963,0.00022766,2]
[313249007,1707015031980,-22660.7513303,0.00022768,2]
[313249010,1707015031990,-157.90239666,0.00022792,2]
[313249013,1707015031999,-202.06,0.00022801,2]
[313249016,1707015032010,-157.90239666,0.00022828,2]
[313249019,1707015032019,-202.06,0.00022862,2]
[313249021,1707015032028,-157.90239666,0.00022864,2]
[313249024,1707015032038,-920.91837977,0.00022898,2]
[313249027,1707015032047,-713.80791335,0.00022898,2]
[313249029,1707015032057,-157.90239666,0.000229,2]
[313249031,1707015032066,-311.90848064,0.000229,6]
[313249033,1707015032075,-198.0473374,0.000229,2]
[313249035,1707015032084,-191.6702373,0.000229,2]
[313249037,1707015032097,-1771.98458525,0.000229,2]
[313249039,1707015032106,-189.84040887,0.000229,2]
[313249041,1707015032115,-202.06,0.00022923,2]
[313249043,1707015032125,-153.62,0.00022956,2]
[313249044,1707015032134,-202.06,0.00022985,2]
[313249045,1707015032145,-1309.71110288,0.00022996,2]
[313249046,1707015032155,-3379.7730865,0.00022996,2]
[313249047,1707015032166,-386.75157083,0.00022996,2]
[313249048,1707015032179,-156.76837779,0.00022997,2]
[313249049,1707015032190,-187562.42423589,0.00022998,2]
[313249050,1707015032205,-1228.73749621,0.00022998,2]
[313249051,1707015032223,-430.67499105,0.00022998,2]
[313249052,1707015032237,-2034.25707462,0.00022998,2]
[313249053,1707015032250,-10882.01057348,0.00022998,2]
[313249054,1707015032262,-1886.34881642,0.00022998,2]
[313249055,1707015032283,-350.00592856,0.00022998,2]
[313249056,1707015032298,-645.96038553,0.00022998,2]
[313249057,1707015032311,-1792.3833566,0.00022998,2]
[313249058,1707015032325,-54130.00721202,0.00022998,2]
[313249059,1707015032340,-298.82689054,0.00022998,2]
[313249060,1707015032352,-652.78451772,0.00022998,2]
[313249061,1707015032365,-743037.23063676,0.00022998,2]
[313249062,1707015032375,-383.22787543,0.00022998,2]
[313249063,1707015032385,-178.84555354,0.00022998,2]
[313249064,1707015032394,-581.17224068,0.00022998,2]
[313249065,1707015032404,-198.73475729,0.00022998,2]
[313249066,1707015032414,-261.61925119,0.00022998,2]
[313249067,1707015032423,-182.08210056,0.00022998,2]
[313249068,1707015032434,-156.38983105,0.00022998,2]
[313249069,1707015032444,-3250.45999221,0.00022998,2]
[313249070,1707015032454,-211.46902017,0.00022998,2]
[313249071,1707015032464,-215.08109964,0.00022998,2]
[313249072,1707015032475,-155.56729194,0.00022998,2]
[313249073,1707015032485,-158.51777285,0.00022998,2]
[313249074,1707015032494,-182.97640306,0.00022998,2]
[313249075,1707015032505,-273.42393789,0.00022998,2]
[313249076,1707015032518,-197.14454409,0.00022998,2]
[313249077,1707015032528,-155.34528332,0.00022998,2]
[313249078,1707015032539,-7248.23266974,0.00022999,2]
[313249079,1707015032550,-167.21932524,0.00022999,2]
[313249080,1707015032559,-309.82679576,0.00022999,2]
[313249081,1707015032568,-168558.56874485,0.00023,2]
[313249082,1707015032581,-497.48514,0.00023,2]
[313249083,1707015032597,-1179.6499085,0.00023,2]
[313249084,1707015032609,-3601.44535342,0.00023,2]
[313249086,1707015038037,-420.81919516,0.00022507,2]
[313249087,1707015038046,-759.73330431,0.00022998,3]
[313249088,1707015038059,-3923.54313859,0.00022998,3]
[313249089,1707015038078,-419.49837736,0.00022998,3]
[313249090,1707015038092,-691.20961858,0.00022998,3]
[313249091,1707015038108,-348.22752604,0.00022998,3]
[313249092,1707015038120,-4333.1718949,0.00022998,3]
[313249093,1707015038130,-42341.4288727,0.00023,2]
[313249094,1707015040188,-529.7127617,0.00022898,2]
[313249095,1707015040198,-210.7784447,0.000229,2]
[313249096,1707015040207,-9515.50582033,0.00023,2]
[313249097,1707015040219,-10753.70536149,0.00023,2]
[313249104,1707015042548,-494.49539835,0.00022898,2]
[313249106,1707015042658,-550.0,0.00022898,2]
[313249107,1707015042817,-1074.28600165,0.00022898,2]
[313249108,1707015042826,-79222.01749835,0.00023,2]
[313249130,1707015045614,-176.99825496,0.00022999,2]
[313249131,1707015045624,-172.02314401,0.00022999,2]
[313249132,1707015045634,-203.39653031,0.00022999,2]
[313249133,1707015045644,-302.34593414,0.00022999,2]
[313249134,1707015045655,-4566.01261334,0.00023,2]
[313249135,1707015045670,-3888.99995391,0.00023,2]
[313249136,1707015045882,-6070.51464648,0.00023,2]
[313249137,1707015045894,-1982.9641444,0.00023,2]
[313249138,1707015045906,-138451.55872577,0.00023,2]
[313249145,1707015064391,150.90986219,0.00022,2]
[313249146,1707015109723,176.92,0.00022,2]
[313249147,1707015122352,509.37361083,0.00022,2]
[313249149,1707015178857,158.28,0.000204,2]
[313249150,1707015190635,550.0,0.00022,3]
[313249151,1707015282426,191.01,0.00022479,2]
[313249152,1707015318574,2000.0,0.0002207,2]
[313249153,1707015339704,163.35,0.0002207,2]
[313249154,1707015513623,163.05,0.00022067,2]
[313249155,1707015513867,163.05,0.00022434,2]
[313249156,1707015560974,672.0,0.00022004,2]
[313249157,1707015597838,158.35,0.00020054,2]
[313249160,1707015721650,176.92,0.00022,2]
[313249161,1707015725382,189.15,0.00022339,2]
[313249162,1707015725613,189.15,0.000224,2]
[313249163,1707015725848,189.15,0.00022462,2]
[313249164,1707015803865,545.65,0.00021917,2]
[313249165,1707015814240,161.37,0.00021917,2]
[313249166,1707015890916,-420.81919516,0.00022517,2]
[313249167,1707015890937,-172.02314401,0.00022518,2]
[313249168,1707015890960,-189.15,0.00022523,2]
[313249169,1707015890980,-188.77007004,0.00022548,2]
[313249170,1707015891001,-4029.23759079,0.0002256,2]
[313249171,1707015891989,-687.353,0.00022563,2]
[313249172,1707015892010,-4312.647,0.00022563,2]
[313249173,1707015893137,-5000.0,0.00022563,2]
[313249174,1707015893506,-5000.0,0.00022563,2]
[313249175,1707015893855,-5000.0,0.00022562,2]
[313249176,1707015894347,-5000.0,0.00022562,2]
[313249177,1707015894780,-5000.0,0.00022562,2]
[313249178,1707015898040,-4064.85927574,0.00022562,2]
[313249179,1707015898060,-935.14072426,0.00022563,2]
[313249180,1707015899651,-5000.0,0.00022563,2]
[313249181,1707015901565,-5000.0,0.00022563,2]
[313249182,1707015903163,-5000.0,0.00022563,2]
[313249183,1707015904358,-5000.0,0.00022563,2]
[313249184,1707015935790,-843.0,0.0002256,2]
[313249185,1707015979390,1000.0,0.00022461,2]
[313249186,1707015994750,2000.0,0.00021876,2]
[313249187,1707016017568,151.05987926,0.00022454,2]
[313249188,1707016026902,-266.41848417,0.00022552,2]
[313249189,1707016026927,-172.02314401,0.00022552,2]
[313249190,1707016026948,-4287.85276481,0.00022553,2]
[313249191,1707016026970,-2952.70560701,0.00022554,2]
[313249192,1707016033348,157.8,0.00019945,2]
[313249193,1707016062318,253.46879313,0.00022,2]
[313249194,1707016103299,150.92055557,0.00022,2]
[313249195,1707016117687,462.4,0.00021856,2]
[313249196,1707016117804,162.84788818,0.00022,2]
[313249197,1707016118047,155.56754731,0.00022,2]
[313249198,1707016118914,155.34797361,0.0002059,2]
[313249199,1707016122524,155.48257522,0.00022,2]
[313249200,1707016129338,155.22447985,0.00022,2]
[313249201,1707016131316,185.6815581,0.00022,2]
[313249202,1707016131947,163.31176555,0.0002059,2]
[313249203,1707016132361,172.20897765,0.00022,2]
[313249204,1707016134195,155.57752006,0.00022,2]
[313249205,1707016135657,155.51289908,0.00022,2]
[313249206,1707016138046,155.0,0.00022,2]
[313249207,1707016140788,170.35453284,0.00022,2]
[313249208,1707016142511,156.075639,0.00022,2]
[313249209,1707016145887,155.0,0.00022,2]
[313249210,1707016145976,363.71329501,0.00022,2]
[313249211,1707016146923,155.0,0.00022,2]
[313249212,1707016150206,155.0,0.00022,2]
[313249213,1707016152894,155.0,0.0002059,2]
[313249214,1707016156036,156.71766194,0.00022,2]
[313249215,1707016159838,155.0,0.00022,2]
[313249216,1707016162916,156.13106102,0.00022,2]
[313249217,1707016163901,155.0,0.00022,2]
[313249218,1707016165207,155.0,0.00022,2]
[313249219,1707016170189,156.8303386,0.00022,2]
[313249220,1707016172902,156.89159203,0.0002059,2]
[313249221,1707016173972,157.46685876,0.00022,2]
[313249222,1707016175659,166.33813551,0.00022,2]
[313249223,1707016183230,156.63721458,0.00022,2]
[313249224,1707016189378,151.32,0.00022044,2]
[313249225,1707016189573,151.32,0.00022104,2]
[313249226,1707016189797,151.32,0.00022165,2]
[313249227,1707016189980,151.32,0.00022225,2]
[313249228,1707016190196,151.32,0.00022285,2]
[313249229,1707016190459,151.32,0.00022346,2]
[313249230,1707016190657,151.32,0.00022406,2]
[313249231,1707016191004,151.32,0.00022467,2]
[313249232,1707016196166,150.81388217,0.00022,2]
[313249282,1707016231791,-584.16439746,0.00022524,2]
[313249284,1707016231800,-420.81919516,0.00022524,2]
[313249286,1707016231809,-761.59097852,0.00022524,2]
[313249288,1707016231818,-282.40257595,0.00022524,2]
[313249290,1707016231827,-505.80842306,0.00022524,2]
[313249292,1707016231836,-943.7892659,0.00022524,2]
[313249294,1707016231845,-1406.21419992,0.00022525,2]
[313249296,1707016231854,-264.36525924,0.00022525,2]
[313249298,1707016231863,-296.53556804,0.00022526,2]
[313249300,1707016231872,-944.53412148,0.00022526,2]
[313249302,1707016231882,-151.32,0.00022527,2]
[313249303,1707016231890,-216.30369653,0.00022532,2]
[313249304,1707016231900,-155.0,0.00022533,2]
[313249305,1707016231909,-1140.68860112,0.00022534,2]
[313249306,1707016231919,-266.41848417,0.00022534,2]
[313249307,1707016231930,-155.0,0.00022534,2]
[313249308,1707016231939,-1064.65585349,0.00022534,2]
[313249309,1707016231950,-474.9218197,0.00022534,2]
[313249310,1707016231959,-167.0,0.00022583,2]
[313249311,1707016231969,-9999.99,0.00022583,2]
[313249312,1707016231978,-6619.25,0.00022583,2]
[313249313,1707016231988,-150.99,0.00022584,2]
[313249314,1707016231999,-151.32,0.00022588,2]
[313249315,1707016232010,-499.99,0.00022645,2]
[313249316,1707016232020,-412.09,0.00022645,2]
[313249317,1707016232029,-9569.99,0.00022645,2]
[313249318,1707016232039,-151.32,0.00022648,2]
[313249319,1707016232048,-151.32,0.00022709,2]
[313249320,1707016232058,-831.76136269,0.00022723,2]
[313249321,1707016232068,-21902.71862488,0.00022724,2]
[313249322,1707016232078,-7780.0,0.00022769,2]
[313249323,1707016232087,-151.32,0.00022769,2]
[313249324,1707016232096,-155.26113331,0.00022797,2]
[313249325,1707016232106,-163.05,0.00022802,2]
[313249326,1707016232115,-151.32,0.0002283,2]
[313249328,1707016232125,-179.67378528,0.0002287,2]
[313249331,1707016232134,-172.31607973,0.00022878,2]
[313249332,1707016232144,-239.91376314,0.00022879,2]
[313249333,1707016232153,-133347.90578132,0.0002288,2]
[313249334,1707016232431,-2469.80951346,0.0002288,2]
[313249335,1707016232452,-457.85527997,0.0002288,2]
[313249336,1707016232466,-384.9005558,0.0002288,2]
[313249337,1707016232478,-562.36646716,0.0002288,2]
[313249338,1707016232489,-429.45865339,0.0002288,2]
[313249339,1707016232526,-324.93609446,0.0002288,2]
[313249340,1707016232540,-881.08273339,0.0002288,2]
[313249341,1707016232552,-807.51397891,0.0002288,2]
[313249346,1707016237837,-490.06276861,0.00022523,2]
[313249347,1707016237846,-88.90232911,0.00022523,2]
[313249348,1707016237858,-1119.03924148,0.00022523,2]
[313249349,1707016237867,-1140.68860112,0.00022523,2]
[313249350,1707016237877,-10201.41657447,0.00022526,2]
[313249351,1707016237889,-24897.3644532,0.0002288,2]
[313249352,1707016237902,-796.10388511,0.0002288,2]
[313249353,1707016237946,-3954.363667,0.0002288,2]
[313249354,1707016238100,-416.64948551,0.0002288,2]
[313249424,1707016240499,-67.3019745,0.00022879,2]
[313249425,1707016240511,-343.12616091,0.00022879,2]
[313249426,1707016240521,-15310.71383909,0.0002288,2]
[313249427,1707016240534,-2248.77429589,0.0002288,2]
[313249434,1707016242743,-325.39435214,0.0002288,2]
[313249437,1707016242758,-686.8794022,0.0002288,2]
[313249440,1707016242783,-340.51000542,0.0002288,2]
[313249448,1707016242851,-736.45,0.0002288,2]
[313249449,1707016242863,-627.52602902,0.0002288,2]
[313249450,1707016242907,-463.99311828,0.0002288,2]
[313249451,1707016242920,-670.14303817,0.0002288,2]
[313249452,1707016242963,-62643.29213329,0.0002288,2]
[313249453,1707016243070,-2130.34773654,0.0002288,2]
[313249486,1707016245934,-779.90788265,0.00022879,2]
[313249488,1707016245946,-296.53556804,0.00022879,2]
[313249491,1707016245958,-155.33241623,0.00022879,2]
[313249493,1707016245970,-1933.69134163,0.0002288,2]
[313249495,1707016245985,-561.24121014,0.0002288,2]
[313249498,1707016246002,-71484.04730222,0.0002288,2]
[313249514,1707016254559,4534.36965629,0.00021989,2]
[313249515,1707016333818,151.09425827,0.00022,2]
[313249516,1707016346833,161.37,0.00022032,2]
[313249517,1707016350731,159.80694104,0.0002201,2]
[313249518,1707016353702,150.0,0.00022027,2]
[313249519,1707016409010,1247.0,0.000225,10]
[313249520,1707016445522,182.52,0.00022013,2]
[313249521,1707016457874,296.24,0.00021981,2]
[313249522,1707016487340,792.34,0.00022125,2]
[313249523,1707016555681,151.61,0.00020074,2]
[313249524,1707016558581,2000.0,0.00021992,2]
[313249525,1707016568170,630.08,0.00021959,2]
[313249526,1707016581717,157.27,0.00021959,2]
[313249527,1707016620249,538.15,0.00022074,2]
[313249528,1707016620478,538.15,0.00022135,2]
[313249529,1707016620686,538.15,0.00022195,2]
[313249530,1707016620908,538.15,0.00022256,2]
[313249531,1707016621114,538.15,0.00022316,2]
[313249532,1707016621342,538.15,0.00022377,2]
[313249533,1707016621750,538.15,0.00022438,2]
[313249534,1707016621957,538.15,0.00022498,2]
[313249535,1707016718862,212.33,0.00021877,2]
[313249536,1707016762208,150.0,0.0002183,2]
[313249537,1707016774549,150.0,0.0002183,2]
[313249538,1707016774572,37.74,0.0002183,2]
[313249539,1707016775126,112.26,0.0002183,2]
[313249540,1707016775151,49.11,0.0002183,2]
[313249541,1707016786762,168.33,0.00017464,2]
[313249542,1707016817983,240.33573781,0.00022447,2]
[313249543,1707016822976,240.33573763,0.00022471,2]
[313249544,1707016828016,240.33573763,0.00022495,2]
[313249545,1707016877156,183.89,0.00021717,2]
[313249546,1707016896675,296.24,0.00021738,2]
[313249547,1707016911748,4000.0,0.000225,2]
[313249548,1707016924269,493.41582949,0.00022412,2]
[313249549,1707016958528,180.49,0.00021736,2]
[313249550,1707016996204,550.0,0.00022,3]
[313249551,1707017002867,495.93,0.00021739,2]
[313249552,1707017036382,1207.94157059,0.000225,2]
[313249553,1707017036776,1406.21419992,0.000225,2]
[313249554,1707017042718,943.7892659,0.000225,2]
[313249555,1707017051207,172.02314401,0.000225,2]
[313249556,1707017056924,155.0,0.00022499,2]
[313249557,1707017064037,420.81919516,0.00022499,2]
[313249558,1707017070023,155.0,0.00022499,2]
[313249559,1707017079173,296.53556804,0.00022499,2]
[313249560,1707017082038,420.81919516,0.00022489,2]
[313249561,1707017083112,282.40257595,0.00022499,2]
[313249562,1707017086336,242.1,0.00021764,2]
[313249563,1707017093123,151.61362838,0.00022,2]
[313249564,1707017104043,193.187771,0.00022489,2]
[313249565,1707017119416,152.89,0.00019856,2]
[313249566,1707017119606,152.89,0.00022246,2]
[313249567,1707017168607,553.67,0.00021932,2]
[313249568,1707017168879,553.67,0.00021992,2]
[313249569,1707017169113,553.67,0.00022052,2]
[313249570,1707017169305,553.67,0.00022112,2]
[313249571,1707017169501,553.67,0.00022172,2]
[313249572,1707017169702,553.67,0.00022232,2]
[313249573,1707017170088,553.67,0.00022292,2]
[313249574,1707017170296,553.67,0.00022353,2]
[313249575,1707017170514,553.67,0.00022413,2]
[313249576,1707017170714,553.67,0.00022473,2]
[313249577,1707017183731,943.7892659,0.00022499,2]
[313249578,1707017221498,158.42,0.00021763,2]
[313249579,1707017221910,150.0,0.00022499,2]
[313249580,1707017221949,150.0,0.00022499,2]
[313249581,1707017226335,167.59,0.00017415,2]
[313249582,1707017232721,516.94573151,0.00021599,2]
[313249583,1707017256114,172.02314401,0.00022499,2]
[313249584,1707017278996,150.0,0.00021775,2]
[313249585,1707017304810,150.0,0.00022,2]
[313249586,1707017334623,172.02314401,0.00022499,2]
[313249587,1707017340885,533.88869138,0.00022499,2]
[313249588,1707017413130,172.02314401,0.00022499,2]
[313249589,1707017424390,296.24,0.00021764,2]
[313249604,1707017431952,-415.54665945,0.000225,2]
[313249605,1707017431962,-398.61329792,0.000225,2]
[313249607,1707017431975,-528.87484806,0.000225,2]
[313249608,1707017432008,-401.85882776,0.000225,2]
[313249609,1707017432017,-156.60052001,0.000225,2]
[313249610,1707017432026,-281.84320057,0.000225,2]
[313249611,1707017432035,-389.72875312,0.000225,2]
[313249612,1707017432043,-35527.52245156,0.00022501,2]
[313249613,1707017432052,-169.5948155,0.00022512,2]
[313249614,1707017432061,-169.5948155,0.00022512,2]
[313249615,1707017432070,-240.33573763,0.00022519,2]
[313249616,1707017432079,-553.67,0.00022533,2]
[313249617,1707017432088,-240.33573763,0.00022542,2]
[313249618,1707017432097,-153.30214944,0.00022548,2]
[313249619,1707017432106,-240.33573763,0.00022566,2]
[313249620,1707017432115,-240.33573763,0.0002259,2]
[313249621,1707017432124,-553.67,0.00022593,2]
[313249622,1707017432133,-150.99,0.00022593,2]
[313249623,1707017432142,-499.99,0.00022593,2]
[313249624,1707017432151,-299.99,0.00022593,7]
[313249625,1707017432160,-240.33573763,0.00022614,2]
[313249626,1707017432169,-167.0,0.00022615,2]
[313249627,1707017432178,-278.17,0.00022615,2]
[313249628,1707017432187,-9159.62,0.00022615,2]
[313249629,1707017432195,-851.56,0.00022615,2]
[313249630,1707017432204,-240.33573763,0.00022638,2]
[313249631,1707017432214,-553.67,0.00022653,2]
[313249632,1707017432222,-240.33573763,0.00022662,2]
[313249633,1707017432232,-240.33573763,0.00022685,2]
[313249634,1707017432242,-240.33573763,0.00022709,2]
[313249635,1707017432252,-553.67,0.00022713,2]
[313249636,1707017432262,-240.33573763,0.00022733,2]
[313249637,1707017432273,-240.33573763,0.00022757,2]
[313249638,1707017432284,-581.22,0.00022762,2]
[313249639,1707017432295,-553.67,0.00022774,2]
[313249640,1707017432304,-2500.0,0.00022779,2]
[313249641,1707017432313,-2500.0,0.00022779,2]
[313249642,1707017432322,-1000.0,0.00022779,2]
[313249643,1707017432331,-1134.9841,0.00022779,2]
[313249644,1707017432340,-2807.0421,0.00022779,2]
[313249645,1707017432349,-1000.0,0.00022779,2]
[313249646,1707017432358,-1045.8781,0.0002278,2]
[313249647,1707017432368,-844.17518141,0.0002278,2]
[313249648,1707017432376,-533.57391915,0.0002278,2]
[313249649,1707017432386,-240.33573763,0.00022781,2]
[313249650,1707017432395,-240.33573763,0.00022805,2]
[313249651,1707017432405,-800.0,0.00022816,2]
[313249652,1707017432414,-240.33573763,0.00022828,2]
[313249653,1707017432423,-553.67,0.00022834,2]
[313249654,1707017432433,-240.33573763,0.00022852,2]
[313249655,1707017432442,-216.20404059,0.00022855,2]
[313249656,1707017432451,-191.04417909,0.00022869,2]
[313249657,1707017432460,-172.02314401,0.00022876,2]
[313249658,1707017432470,-240.33573763,0.00022876,2]
[313249659,1707017432479,-155.62955408,0.00022877,2]
[313249660,1707017432489,-506.43319217,0.00022877,2]
[313249661,1707017432498,-507.36700327,0.00022878,2]
[313249662,1707017432507,-947.35017019,0.00022878,2]
[313249663,1707017432516,-264.35319098,0.00022878,2]
[313249664,1707017432525,-156.00163729,0.00022878,2]
[313249665,1707017432535,-257.15807778,0.00022878,2]
[313249666,1707017432544,-155.53020088,0.00022878,2]
[313249667,1707017432553,-155.59425987,0.00022878,2]
[313249668,1707017432562,-156.11652084,0.00022878,2]
[313249669,1707017432571,-155.31095293,0.00022878,2]
[313249670,1707017432580,-155.41172333,0.00022878,2]
[313249671,1707017432590,-155.87889486,0.00022878,2]
[313249672,1707017432599,-155.56156005,0.00022878,2]
[313249673,1707017432607,-594.0362628,0.00022878,2]
[313249674,1707017432616,-31243.59091667,0.00022878,2]
[313249675,1707017432625,-534.24295506,0.00022879,2]
[313249676,1707017432634,-228.51172163,0.00022879,2]
[313249677,1707017432643,-228.94236889,0.00022879,2]
[313249678,1707017432652,-37828.86201873,0.00022879,2]
[313249679,1707017432664,-46429.55517772,0.00022879,2]
[313249680,1707017432676,-20325.24808812,0.00022879,2]
[313249681,1707017432691,-391.73008624,0.00022879,2]
[313249682,1707017432711,-18449.19894435,0.00022879,2]
[313249683,1707017432727,-917.82255189,0.00022879,2]
[313249684,1707017432738,-154324.80373363,0.00022879,2]
[313249685,1707017432749,-3284.73770804,0.00022879,2]
[313249686,1707017437981,-971.933,0.00022879,2]
[313249687,1707017438037,-761.9585976,0.00022879,2]
[313249688,1707017438048,-664.7155546,0.00022879,2]
[313249689,1707017438061,-1063.47846406,0.00022879,2]
[313249690,1707017438091,-452.64,0.00022879,2]
[313249691,1707017438101,-421.78588728,0.00022879,2]
[313249692,1707017438146,-1609.55802822,0.00022879,2]
[313249693,1707017438158,-903.352006,0.00022879,2]
[313249694,1707017438202,-12857.66091951,0.00022879,2]
[313249695,1707017438213,-21510.78885899,0.00022879,2]
[313249696,1707017438257,-36844.74469071,0.00022879,2]
[313249697,1707017438268,-37375.01717124,0.00022879,2]
[313249698,1707017438279,-39858.17334877,0.00022879,2]
[313249699,1707017438291,-25942.58968721,0.00022879,2]
[313249700,1707017438312,-4536.75444911,0.00022879,2]
[313249701,1707017438362,-100.89,0.00022879,2]
[313249702,1707017438375,-847.22200004,0.00022879,2]
[313249703,1707017441378,-548.80636806,0.00022879,2]
[313249704,1707017441391,-860.79,0.00022879,2]
[313249706,1707017442965,-761.40619449,0.0002278,2]
[313249707,1707017442976,-679.83884633,0.00022878,2]
[313249708,1707017442984,-60703.77237721,0.00022879,2]
[313249709,1707017443121,-354.8153205,0.00022879,2]
[313249710,1707017443132,-2167.88511179,0.00022879,2]
[313249711,1707017443287,-266497.51695551,0.00022879,2]
[313249713,1707017443296,-5237.98692989,0.0002288,3]
[313249715,1707017443305,-230426.65437258,0.0002288,2]
[313249717,1707017443314,-2000.0,0.0002288,2]
[313249719,1707017443324,-200.0,0.0002288,2]
[313249721,1707017443333,-553.67,0.00022894,2]
[313249723,1707017443342,-240.33573763,0.000229,2]
[313249726,1707017443351,-160.52904751,0.000229,2]
[313249727,1707017443360,-249.52678452,0.000229,6]
[313249729,1707017443369,-863.03522982,0.000229,2]
[313249731,1707017443378,-1181.32305684,0.000229,2]
[313249734,1707017443388,-533.03602702,0.000229,2]
[313249735,1707017443397,-189.84040887,0.000229,2]
[313249737,1707017443406,-553.67,0.00022954,2]
[313249739,1707017443416,-217.58941183,0.00022997,2]
[313249741,1707017443425,-1264.55582276,0.00022997,4]
[313249743,1707017443434,-407.39834014,0.00022997,2]
[313249745,1707017443443,-289.09871519,0.00022997,2]
[313249747,1707017443452,-269.90220388,0.00022997,2]
[313249749,1707017443462,-199.02329418,0.00022997,2]
[313249751,1707017443471,-400.78958894,0.00022997,2]
[313249753,1707017443480,-155.34170592,0.00022997,2]